bitfinex/quotes_SOLUSD_20250402
["timestamp","ask_amount","ask_price","bid_price","bid_amount"]
[1743601908666,0.03,127.54,127.53,18.42336157]
[1743601908874,66.5987,127.63,127.54,0.66221085]
[1743601909073,46.28583245,127.6,127.55,10.44]
[1743601909280,46.28583245,127.58,127.55,10.44]
[1743601909481,46.09789463,127.58,127.55,10.44]
[1743601909681,7.8388,127.57,127.55,10.44]
[1743601909866,54.12463245,127.57,127.55,10.44]
[1743601910178,46.28583245,127.56,127.49,0.66221085]
[1743601910378,46.28583245,127.54,127.47,0.66221085]
[1743601910782,6.3932,127.56,127.47,0.66221085]
[1743601910984,46.28583245,127.54,127.47,0.66221085]
[1743601911379,6.3932,127.56,127.48,10.44]
[1743601911585,46.28583245,127.54,127.48,10.44]
[1743601911780,46.28583245,127.52,127.48,10.44]
[1743601912284,73.73023245,127.53,127.48,10.44]
[1743601912493,46.28583245,127.52,127.48,10.44]
[1743601912673,73.73023245,127.53,127.49,293.28]
[1743601913180,27.4444,127.53,127.49,293.28]
[1743601913382,7.8412,127.53,127.49,293.28]
[1743601913883,27.4401,127.55,127.5,10.4]
[1743601914302,46.28583245,127.53,127.5,10.4]
[1743601914900,66.6404,127.55,127.5,10.4]
[1743601914901,46.28583245,127.54,127.5,10.4]
[1743601915075,46.28583245,127.53,127.5,10.4]
[1743601915278,46.28583245,127.54,127.5,10.4]
[1743601915475,73.72593245,127.55,127.5,10.4]
[1743601915677,27.4401,127.55,127.5,10.4]
[1743601916184,0.03,127.58,127.54,0.66221085]
[1743601916390,7.8683,127.58,127.54,0.66221085]
[1743601916594,7.8683,127.58,127.52,0.66221085]
[1743601916973,27.4638,127.58,127.52,0.66221085]
[1743601917867,0.03,127.58,127.54,0.66221085]
[1743601918071,0.03,127.58,127.56,0.66221085]
[1743601918267,0.03,127.58,127.57,10.34]
[1743601919392,0.03,127.58,127.57,10.3]
[1743601919978,46.31583245,127.58,127.51,0.66221085]
[1743601920510,0.03,127.58,127.53,0.66221085]
[1743601921176,0.03,127.58,127.54,10.96221085]
[1743601921376,0.03,127.58,127.56,0.66221085]
[1743601922178,0.03,127.58,127.56,8.50151085]
[1743601922377,0.03,127.58,127.57,0.14216157]
[1743601922805,0.03,127.58,127.57,293.34216157]
[1743601923170,0.03,127.58,127.57,293.2]
[1743601923371,0.03,127.58,127.57,303.46]
[1743601924482,0.03,127.58,127.57,10.26]
[1743601925693,46.31583245,127.58,127.53,0.063]
[1743601925893,6.5866,127.57,127.53,0.063]
[1743601926110,27.438,127.56,127.53,0.063]
[1743601926400,7.8394,127.56,127.53,0.063]
[1743601926905,54.12523245,127.56,127.54,10.22]
[1743601927215,73.72383245,127.56,127.54,10.22]
[1743601927511,27.438,127.56,127.54,10.22]
[1743601927672,46.28583245,127.55,127.48,0.72521085]
[1743601927873,73.72383245,127.56,127.5,0.66221085]
[1743601928133,46.28583245,127.51,127.48,0.063]
[1743601928395,6.2148,127.53,127.49,10.24]
[1743601928597,46.28583245,127.51,127.5,10.22]
[1743601929104,1.5871,127.51,127.45,0.66221085]
[1743601929278,46.28583245,127.5,127.43,23.81702078]
[1743601929594,46.28583245,127.5,127.45,0.66221085]
[1743601929898,1.5871,127.51,127.45,0.66221085]
[1743601929899,46.28583245,127.49,127.45,0.66221085]
[1743601930095,7.8419,127.52,127.49,0.66221085]
[1743601930297,7.8406,127.54,127.49,0.66221085]
[1743601930506,54.12643245,127.54,127.5,10.2]
[1743601930678,73.72803245,127.54,127.5,10.2]
[1743601931082,7.8406,127.54,127.5,10.2]
[1743601931283,7.8406,127.54,127.51,0.66221085]
[1743601931489,11.88463101,127.68,127.67,19.31185971]
[1743601931692,6.4592,127.79,127.73,0.66221085]
[1743601931906,52.74503245,127.79,127.74,10.8]
[1743601932099,46.28583245,127.78,127.75,10.8]
[1743601932300,6.4592,127.79,127.75,10.8]
[1743601932702,46.28583245,127.78,127.76,10.8]
[1743601933210,14.2845,127.79,127.76,10.8]
[1743601933711,46.28583245,127.78,127.76,10.8]
[1743601934097,14.2845,127.79,127.76,10.8]
[1743601934292,46.28583245,127.77,127.74,293.26]
[1743601934496,46.28583245,127.77,127.67,293.26]
[1743601934497,64.93548131,127.75,127.67,293.26]
[1743601934696,46.28583245,127.73,127.67,293.26]
[1743601935113,46.28583245,127.72,127.67,293.26]
[1743601935305,18.64964886,127.75,127.67,293.26]
[1743601935306,46.28583245,127.71,127.67,293.26]
[1743601935923,18.64964886,127.74,127.68,10.74]
[1743601936228,7.829,127.73,127.68,10.74]
[1743601936518,7.8283,127.75,127.68,11.40221085]
[1743601936811,46.28583245,127.74,127.68,10.74]
[1743601937019,54.11413245,127.75,127.68,10.74]
[1743601937724,73.68353245,127.75,127.68,10.74]
[1743601937931,46.31583245,127.71,127.67,293.26]
[1743601938094,54.11663245,127.7,127.69,10.74]
[1743601938413,27.4079,127.7,127.67,293.26]
[1743601938594,27.4079,127.7,127.69,10.72]
[1743601938995,73.69373245,127.7,127.69,10.72]
[1743601939190,92.34338131,127.7,127.67,293.26]
[1743601939409,18.64964886,127.69,127.67,293.26]
[1743601939621,27.4079,127.7,127.67,293.26]
[1743601939820,7.8308,127.7,127.67,293.26]
[1743601940316,46.28583245,127.69,127.67,293.26]
[1743601940523,27.4079,127.7,127.67,293.26]
[1743601940820,46.28583245,127.69,127.68,10.68]
[1743601941214,7.8308,127.7,127.68,10.68]
[1743601941623,54.11663245,127.7,127.68,10.68]
[1743601941997,46.28583245,127.69,127.68,10.68]
[1743601942351,0.03,127.71,127.68,10.68]
[1743601942525,7.8602,127.71,127.68,10.68]
[1743601942715,0.03,127.71,127.68,10.68]
[1743601943028,46.28583245,127.69,127.68,10.68]
[1743601943595,46.28583245,127.69,127.67,293.26]
[1743601943795,46.22771043,127.71,127.67,293.26]
[1743601944036,46.28583245,127.68,127.67,293.26]
[1743601944330,18.64964886,127.67,127.65,0.3026]
[1743601944498,46.28583245,127.66,127.65,0.0001]
[1743601945204,0.67216157,127.71,127.65,10.5801]
[1743601945205,0.03,127.71,127.65,10.5801]
[1743601945407,0.03,127.71,127.68,20.0]
[1743601945598,0.03,127.71,127.7,0.66221085]
[1743601948021,47.88713245,127.83,127.76,0.66221085]
[1743601948319,46.28583245,127.8,127.77,10.8]
[1743601948720,64.93548131,127.78,127.68,0.66221085]
[1743601948919,18.64964886,127.77,127.68,0.66221085]
[1743601949113,46.28583245,127.75,127.68,0.66221085]
[1743601949311,46.28583245,127.74,127.7,1.95520224]
[1743601949507,0.14216157,127.78,127.7,1.95520224]
[1743601949710,46.28583245,127.74,127.7,1.95520224]
[1743601949902,46.28583245,127.75,127.7,1.95520224]
[1743601950102,46.28583245,127.75,127.71,10.84]
[1743601950317,54.11423245,127.74,127.71,10.84]
[1743601950825,54.11423245,127.74,127.7,1.95520224]
[1743601950826,46.28583245,127.72,127.7,1.95520224]
[1743601951005,46.28583245,127.71,127.7,1.95520224]
[1743601951406,7.8284,127.74,127.7,1.95520224]
[1743601951618,7.8284,127.74,127.68,10.82]
[1743601951619,27.3994,127.74,127.68,10.82]
[1743601951824,46.28583245,127.73,127.68,10.82]
[1743601952312,27.4036,127.72,127.68,10.82]
[1743601952515,46.28583245,127.71,127.68,10.82]
[1743601952944,46.28583245,127.7,127.68,10.82]
[1743601953306,27.4036,127.72,127.68,10.82]
[1743601953307,46.28583245,127.69,127.68,10.82]
[1743601953619,46.28583245,127.69,127.66,292.94]
[1743601953809,46.28583245,127.67,127.66,292.94]
[1743601954328,7.8308,127.7,127.66,292.94]
[1743601954541,73.69373245,127.7,127.66,292.94]
[1743601954837,46.28583245,127.69,127.67,10.76]
[1743601955124,7.8308,127.7,127.67,10.76]
[1743601955512,73.69373245,127.7,127.67,10.76]
[1743601955710,27.4079,127.7,127.67,10.76]
[1743601955910,73.69373245,127.7,127.67,10.76]
[1743601956424,19.5771,127.7,127.67,10.76]
[1743601956733,65.86293245,127.7,127.67,10.76]
[1743601956937,46.28583245,127.69,127.67,10.76]
[1743601957543,46.28583245,127.68,127.66,292.94]
[1743601957825,19.5771,127.7,127.66,292.94]
[1743601958139,46.28583245,127.69,127.66,292.94]
[1743601958329,46.28583245,127.68,127.66,292.94]
[1743601958928,46.28583245,127.67,127.66,292.94]
[1743601959122,18.64964886,127.68,127.66,292.94]
[1743601959313,46.28583245,127.68,127.66,292.94]
[1743601959515,27.41,127.69,127.66,292.94]
[1743601959713,46.28583245,127.68,127.66,292.94]
[1743601959909,46.28583245,127.67,127.66,292.94]
[1743601960424,46.28583245,127.67,127.66,303.64]
[1743601960425,7.8326,127.67,127.66,303.64]
[1743601961932,54.11843245,127.67,127.66,303.703]
[1743601962131,7.8326,127.67,127.66,303.703]
[1743601962312,27.4015,127.73,127.66,303.703]
[1743601962630,46.28583245,127.71,127.66,303.703]
[1743601962829,46.28583245,127.69,127.66,303.703]
[1743601963026,0.03645095,127.68,127.66,303.703]
[1743601963536,18.64964886,127.67,127.65,0.0001]
[1743601963743,46.28583245,127.67,127.65,0.0001]
[1743601964635,7.8333,127.66,127.65,0.0001]
[1743601965140,7.8333,127.66,127.65,10.6201]
[1743601967226,54.11913245,127.66,127.65,10.6201]
[1743601967844,7.8333,127.66,127.65,10.6201]
[1743601968143,54.11913245,127.66,127.65,10.5401]
[1743601968723,7.8333,127.66,127.65,10.5401]
[1743601969114,54.11913245,127.66,127.65,10.5401]
[1743601969634,46.28583245,127.67,127.65,10.5401]
[1743601969842,64.93548131,127.67,127.65,10.5401]
[1743601970843,73.7350834,127.68,127.65,10.5401]
[1743601971037,46.28583245,127.67,127.65,10.5401]
[1743601971239,27.44925095,127.68,127.65,10.5401]
[1743601971846,46.28583245,127.67,127.65,10.5401]
[1743601973043,73.7350834,127.68,127.65,10.5401]
[1743601973244,27.44925095,127.68,127.65,10.5401]
[1743601973439,73.7350834,127.68,127.65,10.5401]
[1743601973643,7.8333,127.66,127.65,10.5401]
[1743601974347,54.11913245,127.66,127.65,10.5401]
[1743601974531,7.8333,127.66,127.65,10.5401]
[1743601975348,72.76878131,127.66,127.65,10.5401]
[1743601975847,7.8333,127.66,127.65,10.5401]
[1743601976431,7.89875095,127.68,127.65,10.5401]
[1743601976735,0.06645095,127.68,127.65,10.5401]
[1743601976931,0.06645095,127.68,127.65,11.20231085]
[1743601977142,0.06645095,127.68,127.67,20.0]
[1743601977677,0.03,127.68,127.65,11.20231085]
[1743601977831,0.03,127.68,127.67,5.430054]
[1743601978647,0.03,127.68,127.67,6.0558139]
[1743601978855,0.03,127.68,127.67,26.0558139]
[1743601979154,0.03,127.68,127.67,28.01231618]
[1743601979347,0.03,127.68,127.67,18.29231618]
[1743601979550,0.03,127.68,127.67,17.63010533]
[1743601981038,0.03,127.68,127.67,15.67360305]
[1743601981247,46.31583245,127.68,127.67,5.39360305]
[1743601981552,46.31583245,127.68,127.65,0.0001]
[1743601981553,0.14216157,127.66,127.65,0.0001]
[1743601981753,7.8333,127.66,127.65,0.0001]
[1743601981931,72.91094288,127.66,127.65,0.0001]
[1743601982137,7.8333,127.66,127.65,0.0001]
[1743601982554,7.8329,127.67,127.65,0.0001]
[1743601982851,7.8329,127.67,127.66,10.34]
[1743601982852,72.76838131,127.67,127.66,10.34]
[1743601983353,18.79181043,127.66,127.65,0.0001]
[1743601983570,18.79181043,127.66,127.59,293.06]
[1743601983733,46.28583245,127.63,127.59,293.06]
[1743601983942,7.8357,127.62,127.59,293.06]
[1743601984135,73.71093245,127.62,127.59,293.06]
[1743601984566,73.71093245,127.62,127.59,303.38]
[1743601984954,27.4251,127.62,127.59,293.06]
[1743601985166,64.93548131,127.61,127.59,293.06]
[1743601985372,46.28583245,127.6,127.59,293.06]
[1743601985684,0.14216157,127.58,127.54,0.063]
[1743601985830,46.28583245,127.55,127.54,0.063]
[1743601986035,65.07764288,127.55,127.54,0.0001]
[1743601986235,18.79181043,127.54,127.53,0.0001]
[1743601986471,64.93548131,127.54,127.53,0.0001]
[1743601986758,46.28583245,127.56,127.53,0.0001]
[1743601986933,46.28583245,127.55,127.53,0.0001]
[1743601987140,46.28583245,127.54,127.53,0.0001]
[1743601987352,46.28583245,127.55,127.53,0.0001]
[1743601987935,7.8406,127.54,127.53,0.0001]
[1743601988664,54.12613245,127.55,127.53,0.0001]
[1743601988839,72.77578131,127.55,127.54,10.32]
[1743601989258,26.48994886,127.55,127.54,10.32]
[1743601989464,72.77578131,127.55,127.54,10.32]
[1743601990166,72.77578131,127.55,127.53,0.0001]
[1743601990167,0.14216157,127.54,127.53,0.0001]
[1743601990372,46.42799402,127.54,127.53,0.0001]
[1743601990751,25.8272,127.57,127.53,0.0001]
[1743601990752,27.4272,127.61,127.53,0.0001]
[1743601991052,46.28583245,127.59,127.53,0.0001]
[1743601991253,64.93548131,127.6,127.53,0.0001]
[1743601991435,73.71303245,127.61,127.53,0.0001]
[1743601991638,7.8363,127.61,127.53,0.0001]
[1743601991860,46.28583245,127.6,127.53,0.0001]
[1743601992065,7.8376,127.59,127.53,0.0001]
[1743601992461,7.8376,127.59,127.53,1.95851737]
[1743601992674,7.8376,127.59,127.54,293.22]
[1743601993390,54.12343245,127.59,127.54,293.22]
[1743601993570,46.28583245,127.58,127.54,293.22]
[1743601993774,46.28583245,127.56,127.54,293.22]
[1743601994082,54.12583245,127.55,127.54,303.44]
[1743601994287,72.77548131,127.55,127.54,303.44]
[1743601995150,18.64964886,127.54,127.53,0.0001]
[1743601995356,64.93548131,127.54,127.53,0.0001]
[1743601995555,65.07764288,127.54,127.53,0.0001]
[1743601996067,65.07764288,127.54,127.46,0.03]
[1743601996068,18.64964886,127.51,127.47,293.24]
[1743601996268,46.28583245,127.49,127.47,293.24]
[1743601996451,46.28583245,127.5,127.48,10.18]
[1743601996868,46.28583245,127.51,127.48,10.18]
[1743601997460,7.8414,127.53,127.48,10.18]
[1743601997649,54.12723245,127.53,127.48,10.18]
[1743601998053,7.8414,127.53,127.48,10.18]
[1743601998266,54.12723245,127.53,127.48,10.18]
[1743601999154,73.73043245,127.53,127.48,10.18]
[1743601999375,46.28583245,127.51,127.48,10.18]
[1743601999561,46.28583245,127.51,127.47,293.24]
[1743601999764,46.28583245,127.52,127.49,10.12]
[1743602000070,7.8425,127.51,127.49,10.12]
[1743602000976,54.12833245,127.51,127.49,10.12]
[1743602001360,7.8425,127.51,127.49,10.12]
[1743602001674,54.12833245,127.51,127.49,10.12]
[1743602001882,46.28583245,127.5,127.49,10.12]
[1743602002069,7.8437,127.49,127.48,0.03]
[1743602002250,54.12953245,127.49,127.48,0.03]
[1743602002656,7.8437,127.49,127.48,0.03]
[1743602002857,54.12953245,127.49,127.48,0.03]
[1743602003268,72.77918131,127.49,127.48,0.03]
[1743602003760,26.49334886,127.49,127.48,0.03]
[1743602004082,7.8437,127.49,127.48,0.03]
[1743602004262,49.35556094,127.49,127.48,0.03]
[1743602004580,49.35556094,127.49,127.47,303.3]
[1743602004581,49.49772251,127.49,127.47,303.3]
[1743602004759,49.35556094,127.48,127.47,303.3]
[1743602005077,49.35556094,127.48,127.46,0.03]
[1743602005078,18.79181043,127.47,127.46,0.03]
[1743602005578,49.49772251,127.47,127.46,0.03]
[1743602006067,0.14216157,127.46,127.45,10.02]
[1743602006269,38.69357365,127.46,127.45,10.02]
[1743602006459,18.64964886,127.45,127.44,293.38]
[1743602006657,49.35556094,127.45,127.43,10.0]
[1743602006970,49.35556094,127.44,127.43,10.0]
[1743602007164,49.49772251,127.44,127.43,10.0]
[1743602007369,18.64964886,127.43,127.41,303.36]
[1743602007571,30.70591208,127.43,127.41,303.36]
[1743602008173,7.848,127.42,127.41,303.36]
[1743602009293,7.8474,127.43,127.41,303.36]
[1743602009468,18.64964886,127.46,127.41,303.36]
[1743602009663,49.35556094,127.46,127.41,303.36]
[1743602009863,18.64964886,127.46,127.41,303.36]
[1743602010078,0.14216157,127.45,127.41,303.36]
[1743602010382,57.20356094,127.42,127.41,293.38]
[1743602010572,57.34572251,127.42,127.41,293.38]
[1743602010769,0.14216157,127.41,127.4,9.92]
[1743602010972,0.14216157,127.41,127.35,0.063]
[1743602010973,18.64964886,127.4,127.35,0.063]
[1743602011174,30.70591208,127.39,127.35,0.063]
[1743602011381,18.64964886,127.4,127.35,0.063]
[1743602011382,30.70591208,127.38,127.35,0.063]
[1743602011679,30.70591208,127.37,127.35,0.063]
[1743602012263,30.84807365,127.36,127.31,0.063]
[1743602012481,49.35556094,127.33,127.32,9.88]
[1743602012980,49.49772251,127.33,127.32,9.88]
[1743602013701,18.79181043,127.36,127.32,9.86]
[1743602013867,30.70591208,127.34,127.32,9.86]
[1743602014069,49.35556094,127.33,127.32,9.86]
[1743602014269,57.20916094,127.33,127.32,9.86]
[1743602014487,26.50324886,127.33,127.32,9.86]
[1743602014808,57.20916094,127.33,127.32,9.86]
[1743602015901,18.79181043,127.32,127.3,293.58]
[1743602016193,49.35556094,127.31,127.3,293.58]
[1743602016495,0.14216157,127.29,127.28,9.87]
[1743602016703,30.84807365,127.29,127.28,9.87]
[1743602017209,49.49772251,127.29,127.28,0.0001]
[1743602017986,18.79181043,127.29,127.28,0.0001]
[1743602018196,49.49772251,127.29,127.28,0.0001]
[1743602018405,57.35372251,127.29,127.28,0.0001]
[1743602018566,26.50564886,127.29,127.28,0.0001]
[1743602018778,57.21156094,127.29,127.28,0.0001]
[1743602019097,57.35372251,127.29,127.28,0.0001]
[1743602023294,26.50564886,127.29,127.28,0.0001]
[1743602023489,57.21156094,127.29,127.28,0.0001]
[1743602023794,57.35372251,127.29,127.28,0.0001]
[1743602025589,26.50564886,127.29,127.28,0.0001]
[1743602025891,57.21156094,127.29,127.28,0.0001]
[1743602026067,57.35372251,127.29,127.28,0.0001]
[1743602028291,18.79181043,127.28,127.24,293.77]
[1743602028493,28.00316157,127.21,127.16,293.9]
[1743602028684,77.35872251,127.21,127.2,0.0001]
[1743602029779,0.14216157,127.19,127.16,293.9]
[1743602030092,30.70591208,127.18,127.16,293.9]
[1743602030286,18.64964886,127.17,127.16,293.9]
[1743602030681,26.51304886,127.17,127.16,293.9]
[1743602030882,57.36112251,127.17,127.16,293.9]
[1743602031083,57.36112251,127.17,127.16,303.5]
[1743602031995,26.51304886,127.17,127.16,303.5]
[1743602032192,7.8634,127.17,127.16,303.5]
[1743602032404,7.8631,127.18,127.16,303.5]
[1743602032611,7.8625,127.19,127.16,303.5]
[1743602032993,26.51154886,127.2,127.16,303.5]
[1743602033493,0.14216157,127.19,127.16,303.5]
[1743602034813,7.8628,127.18,127.16,303.5]
[1743602035103,7.8624,127.19,127.16,303.5]
[1743602036098,18.64964886,127.18,127.16,293.9]
[1743602036284,49.49772251,127.17,127.16,293.9]
[1743602036487,49.49772251,127.17,127.16,303.42]
[1743602036880,57.36112251,127.17,127.16,303.42]
[1743602037079,18.79181043,127.16,127.15,0.03]
[1743602037393,20.14216157,127.14,127.13,0.03]
[1743602037584,20.14216157,127.14,127.13,9.53]
[1743602038194,27.5221,127.17,127.13,9.53]
[1743602038496,18.79181043,127.16,127.13,9.53]
[1743602038995,7.8647,127.15,127.13,9.53]
[1743602039399,18.64964886,127.14,127.13,9.53]
[1743602040493,7.8647,127.15,127.13,9.53]
[1743602040716,26.51394886,127.16,127.13,9.53]
[1743602041292,7.8622,127.19,127.13,9.53]
[1743602042387,7.8622,127.19,127.13,10.19221085]
[1743602042703,58.22371208,127.19,127.13,10.19221085]
[1743602043005,27.5178,127.19,127.13,10.19221085]
[1743602043684,7.8622,127.19,127.13,10.19221085]
[1743602043892,7.8616,127.2,127.13,10.19221085]
[1743602044103,7.8616,127.2,127.13,19.63111085]
[1743602044700,26.51044886,127.22,127.15,0.66221085]
[1743602044899,7.8608,127.22,127.17,0.66221085]
[1743602045109,39.2856,127.28,127.18,9.38]
[1743602045419,0.14216157,127.27,127.19,0.66221085]
[1743602045730,18.64964886,127.26,127.19,0.66221085]
[1743602045924,30.70591208,127.27,127.19,0.66221085]
[1743602046417,18.64964886,127.26,127.19,0.66221085]
[1743602047009,30.91107365,127.29,127.21,0.66221085]
[1743602047212,7.8573,127.27,127.22,294.12]
[1743602047406,7.8573,127.27,127.23,9.34]
[1743602047586,49.35556094,127.26,127.24,9.34]
[1743602047786,30.84807365,127.25,127.24,9.34]
[1743602048095,0.14216157,127.23,127.22,294.12]
[1743602048287,18.64964886,127.24,127.22,294.12]
[1743602048288,18.64964886,127.24,127.22,303.46]
[1743602048508,18.64964886,127.26,127.22,303.46]
[1743602048709,49.35556094,127.26,127.22,303.46]
[1743602048893,18.64964886,127.26,127.22,303.46]
[1743602049210,0.063,127.23,127.22,303.46]
[1743602050303,0.20516157,127.23,127.22,303.46]
[1743602050606,0.063,127.23,127.22,303.46]
[1743602050790,0.20516157,127.23,127.22,303.46]
[1743602050991,18.64964886,127.22,127.21,294.1]
[1743602051193,7.8622,127.19,127.13,0.03]
[1743602051397,18.64964886,127.18,127.17,294.1]
[1743602051828,27.5178,127.19,127.17,294.1]
[1743602052330,7.8622,127.19,127.17,294.1]
[1743602053230,20.0,127.22,127.17,294.1]
[1743602053410,18.64964886,127.21,127.17,294.1]
[1743602054004,0.063,127.23,127.17,294.1]
[1743602054203,0.063,127.23,127.18,0.66221085]
[1743602054405,0.063,127.23,127.19,9.3]
[1743602055116,0.063,127.23,127.18,2.05744869]
[1743602055313,0.063,127.23,127.2,9.3]
[1743602055512,0.063,127.23,127.2,9.96221085]
[1743602055763,0.063,127.23,127.2,9.3]
[1743602055902,0.063,127.23,127.18,2.05744869]
[1743602056106,0.063,127.23,127.19,9.32]
[1743602057718,0.063,127.23,127.2,2.06612197]
[1743602059122,0.063,127.23,127.19,9.98221085]
[1743602059831,0.063,127.23,127.19,9.32]
[1743602061405,18.64964886,127.22,127.17,294.1]
[1743602061609,18.64964886,127.22,127.18,9.24]
[1743602061804,49.35556094,127.2,127.17,294.1]
[1743602062028,30.70591208,127.19,127.17,294.1]
[1743602062225,18.64964886,127.19,127.17,294.1]
[1743602062809,0.14216157,127.21,127.17,294.1]
[1743602063011,18.64964886,127.22,127.18,9.22]
[1743602063528,7.861,127.21,127.18,9.22]
[1743602063824,27.5135,127.21,127.17,294.1]
[1743602064023,7.861,127.21,127.19,9.24]
[1743602064918,38.36264886,127.23,127.19,9.24]
[1743602064919,7.9233,127.23,127.19,9.24]
[1743602065326,26.57294886,127.23,127.19,9.24]
[1743602065622,0.063,127.23,127.19,9.24]
[1743602066124,0.063,127.23,127.19,9.90221085]
[1743602066322,7.9228,127.23,127.19,9.90221085]
[1743602066529,7.9228,127.23,127.19,9.24]
[1743602066828,27.5722,127.23,127.19,9.24]
[1743602067524,18.64964886,127.22,127.19,9.24]
[1743602067709,27.5722,127.23,127.19,9.24]
[1743602067910,7.9228,127.23,127.19,9.24]
[1743602068123,27.5722,127.23,127.19,9.24]
[1743602068322,7.9228,127.23,127.19,9.24]
[1743602068519,7.9228,127.23,127.19,9.90221085]
[1743602068520,0.063,127.23,127.19,9.90221085]
[1743602068706,0.063,127.23,127.19,9.24]
[1743602069607,0.063,127.23,127.19,9.90221085]
[1743602070003,0.063,127.23,127.21,0.66221085]
[1743602070306,0.063,127.23,127.19,9.90221085]
[1743602071315,0.063,127.23,127.17,296.34731085]
[1743602071514,0.063,127.23,127.19,0.66221085]
[1743602071910,0.063,127.23,127.2,9.28]
[1743602072422,0.063,127.23,127.21,294.06]
[1743602077236,0.063,127.23,127.22,9.28]
[1743602080335,0.063,127.23,127.22,9.24]
[1743602081341,0.063,127.23,127.21,294.06]
[1743602081538,0.063,127.23,127.22,9.22]
[1743602082342,30.91107365,127.23,127.2,9.24]
[1743602082720,0.20516157,127.23,127.2,9.24]
[1743602083536,30.91107365,127.23,127.2,9.24]
[1743602083726,18.64964886,127.21,127.2,9.24]
[1743602083927,7.8603,127.22,127.2,9.24]
[1743602084328,7.8603,127.22,127.2,303.28]
[1743602085135,49.49772251,127.21,127.2,303.28]
[1743602085347,18.79181043,127.21,127.2,303.28]
[1743602085546,49.35556094,127.21,127.2,294.04]
[1743602085842,26.65281043,127.21,127.2,303.24]
[1743602086152,57.35872251,127.21,127.2,294.04]
[1743602086352,57.35872251,127.21,127.2,9.2]
[1743602086353,78.58682251,127.21,127.2,9.2]
[1743602086731,47.88091043,127.21,127.2,9.2]
[1743602086950,47.73874886,127.21,127.2,9.2]
[1743602087152,46.16314886,127.21,127.2,9.2]
[1743602087736,7.861,127.21,127.2,9.2]
[1743602089736,7.8603,127.22,127.2,303.28]
[1743602091129,18.64964886,127.21,127.2,303.28]
[1743602091528,7.8603,127.22,127.2,303.28]
[1743602091734,46.36391043,127.23,127.2,303.28]
[1743602091954,30.70591208,127.22,127.2,303.28]
[1743602092254,46.22174886,127.23,127.2,303.28]
[1743602092552,18.79181043,127.22,127.2,303.28]
[1743602093353,0.063,127.23,127.2,303.28]
[1743602095540,0.063,127.23,127.21,2.0797869]
[1743602096949,18.71264886,127.23,127.21,2.0797869]
[1743602097154,0.14216157,127.22,127.21,2.0797869]
[1743602097355,18.71264886,127.23,127.21,2.0797869]
[1743602097939,7.8603,127.22,127.21,2.0797869]
[1743602098641,7.8603,127.22,127.2,303.28]
[1743602100275,18.79181043,127.21,127.2,294.08]
[1743602100482,18.64964886,127.21,127.2,294.08]
[1743602100819,18.79181043,127.21,127.2,303.1]
[1743602101273,18.64964886,127.21,127.2,303.1]
[1743602101768,7.8603,127.22,127.2,303.1]
[1743602102175,26.57234886,127.23,127.2,303.1]
[1743602102476,0.063,127.23,127.2,303.1]
[1743602103169,18.71264886,127.23,127.2,303.1]
[1743602103345,0.063,127.23,127.2,303.1]
[1743602104676,0.063,127.23,127.21,2.08060115]
[1743602104889,0.063,127.23,127.22,20.0]
[1743602105054,7.9194,127.29,127.23,0.66221085]
[1743602105370,49.49772251,127.28,127.24,9.14]
[1743602105751,18.79181043,127.28,127.24,9.14]